fUST/lending_fUST_20251202
["ID","MTS","AMOUNT","RATE_DAILY","PERIOD"]
[395341958,1764635076157,-151.0,0.00036118,31]
[395341959,1764635076229,-151.0,0.00036118,31]
[395341960,1764635076296,-151.0,0.00036118,31]
[395341961,1764635076364,-151.0,0.00036118,31]
[395341962,1764635076435,-204.905116,0.00036118,31]
[395341963,1764635076504,-151.0,0.00036118,31]
[395341964,1764635076575,-151.0,0.00036118,31]
[395341965,1764635076646,-151.0,0.00036118,31]
[395341966,1764635076716,-160.211165,0.00036118,31]
[395341967,1764635076790,-151.0,0.00036118,31]
[395341968,1764635076861,-151.0,0.00036118,31]
[395341969,1764635076938,-151.0,0.00036118,31]
[395341970,1764635077006,-151.0,0.00036118,31]
[395341971,1764635077070,-151.0,0.00036118,31]
[395341972,1764635077141,-151.0,0.00036118,31]
[395341973,1764635077212,-151.0,0.00036118,31]
[395341974,1764635077281,-151.0,0.00036118,31]
[395341975,1764635077348,-151.0,0.00036118,31]
[395341976,1764635077414,-151.0,0.00036118,31]
[395341977,1764635077478,-183.921632,0.00036118,31]
[395341978,1764635077540,-500.40018007,0.00036118,60]
[395341979,1764635077611,-313.71,0.00036118,60]
[395341980,1764635077681,-313.71,0.00036118,60]
[395341981,1764635077744,-313.71,0.00036118,60]
[395341982,1764635077813,-313.71,0.00036118,60]
[395341983,1764635077886,-313.71,0.00036118,60]
[395341984,1764635077951,-313.71,0.00036118,60]
[395341985,1764635078015,-313.71,0.00036118,60]
[395341986,1764635078088,-313.71,0.00036118,60]
[395341987,1764635078161,-313.71,0.00036118,60]
[395341988,1764635078234,-313.71,0.00036118,60]
[395341989,1764635078311,-313.71,0.00036118,60]
[395341990,1764635078388,-313.71,0.00036118,60]
[395341991,1764635078466,-313.71,0.00036118,60]
[395341992,1764635078785,-313.71,0.00036118,60]
[395341993,1764635078860,-313.71,0.00036118,60]
[395341994,1764635078931,-313.71,0.00036118,60]
[395341995,1764635078998,-313.71,0.00036118,60]
[395341996,1764635079071,-313.71,0.00036118,60]
[395341997,1764635079148,-313.71,0.00036118,60]
[395341998,1764635079220,-313.71,0.00036118,60]
[395341999,1764635079292,-313.71,0.00036118,60]
[395342000,1764635079369,-313.71,0.00036118,60]
[395342001,1764635079440,-313.71,0.00036118,60]
[395342002,1764635079506,-313.81508138,0.00036118,60]
[395342003,1764635079578,-151.0,0.00036118,31]
[395342004,1764635079646,-151.0,0.00036118,31]
[395342005,1764635079717,-151.0,0.00036118,31]
[395342006,1764635079793,-151.0,0.00036118,31]
[395342007,1764635079866,-151.0,0.00036118,31]
[395342008,1764635079940,-248.629488,0.00036118,31]
[395342009,1764635080012,-151.0,0.00036118,31]
[395342010,1764635080085,-151.0,0.00036118,31]
[395342011,1764635080158,-151.0,0.00036118,31]
[395342012,1764635080234,-151.0,0.00036118,31]
[395342013,1764635080303,-175.503096,0.00036118,31]
[395342014,1764635080377,-157.146667,0.00036118,31]
[395342015,1764635080450,-157.146667,0.00036118,31]
[395342016,1764635080520,-157.146667,0.00036118,31]
[395342017,1764635080591,-157.146667,0.00036118,31]
[395342018,1764635080661,-157.146667,0.00036118,31]
[395342019,1764635080729,-157.146667,0.00036118,31]
[395342020,1764635080797,-157.146667,0.00036118,31]
[395342021,1764635080864,-157.146667,0.00036118,31]
[395342022,1764635080930,-157.146667,0.00036118,31]
[395342023,1764635080999,-157.146667,0.00036118,31]
[395342024,1764635081067,-157.146667,0.00036118,31]
[395342025,1764635081137,-157.146667,0.00036118,31]
[395342026,1764635081208,-157.146667,0.00036118,31]
[395342027,1764635081277,-157.146667,0.00036118,31]
[395342028,1764635081348,-157.146667,0.00036118,31]
[395342029,1764635081419,-157.146667,0.00036118,31]
[395342030,1764635081485,-157.146667,0.00036118,31]
[395342031,1764635081554,-157.146667,0.00036118,31]
[395342032,1764635081628,-157.146667,0.00036118,31]
[395342033,1764635081699,-157.146675,0.00036118,31]
[395342034,1764635081774,-1526.81,0.00036118,60]
[395342035,1764635081848,-1526.81,0.00036118,60]
[395342036,1764635081919,-1526.81,0.00036118,60]
[395342037,1764635081988,-1526.81,0.00036118,60]
[395342038,1764635082060,-1526.81,0.00036118,60]
[395342039,1764635082132,-1526.81,0.00036118,60]
[395342040,1764635082203,-1526.81,0.00036118,60]
[395342041,1764635082268,-1526.81,0.00036118,60]
[395342042,1764635082342,-1526.81,0.00036118,60]
[395342043,1764635082417,-1526.81,0.00036118,60]
[395342044,1764635082486,-1526.81,0.00036118,60]
[395342045,1764635082555,-1526.81,0.00036118,60]
[395342046,1764635082625,-1526.81,0.00036118,60]
[395342047,1764635082700,-1526.81,0.00036118,60]
[395342048,1764635082775,-1526.81,0.00036118,60]
[395342049,1764635082841,-1526.81,0.00036118,60]
[395342050,1764635082907,-1526.81,0.00036118,60]
[395342051,1764635082975,-1526.81,0.00036118,60]
[395342052,1764635083039,-1526.81,0.00036118,60]
[395342053,1764635083107,-1526.81,0.00036118,60]
[395342054,1764635083179,-1526.81,0.00036118,60]
[395342055,1764635083246,-1526.81,0.00036118,60]
[395342056,1764635083320,-1526.81,0.00036118,60]
[395342057,1764635083392,-1527.03601045,0.00036118,60]
[395342058,1764635083462,-500.0,0.00036118,30]
[395342059,1764635083535,-205.826407,0.00036118,40]
[395342060,1764635083613,-200.0,0.00036118,30]
[395342061,1764635083691,-151.0,0.00036118,31]
[395342062,1764635083764,-151.0,0.00036118,31]
[395342063,1764635083853,-454.58253,0.00036118,31]
[395342064,1764635083928,-454.58253,0.00036118,31]
[395342065,1764635083999,-454.58253,0.00036118,31]
[395342066,1764635084070,-454.58253,0.00036118,31]
[395342067,1764635084145,-454.58253,0.00036118,31]
[395342068,1764635084221,-454.58253,0.00036118,31]
[395342069,1764635084301,-454.58253,0.00036118,31]
[395342070,1764635084376,-454.58253,0.00036118,31]
[395342071,1764635084448,-454.58253,0.00036118,31]
[395342072,1764635084521,-454.58253,0.00036118,31]
[395342073,1764635084590,-454.58253,0.00036118,31]
[395342074,1764635084662,-454.58253,0.00036118,31]
[395342075,1764635084732,-454.58253,0.00036118,31]
[395342076,1764635084805,-454.58253,0.00036118,31]
[395342077,1764635084877,-454.58253,0.00036118,31]
[395342078,1764635084947,-454.58253,0.00036118,31]
[395342079,1764635085020,-454.58253,0.00036118,31]
[395342080,1764635085092,-454.58253,0.00036118,31]
[395342081,1764635085163,-454.58253,0.00036118,31]
[395342082,1764635085237,-454.582524,0.00036118,31]
[395342083,1764635085305,-2502.99216369,0.00036118,30]
[395342084,1764635085376,-151.0,0.00036118,31]
[395342085,1764635085447,-151.0,0.00036118,31]
[395342086,1764635085518,-151.0,0.00036118,31]
[395342087,1764635085593,-151.0,0.00036118,31]
[395342088,1764635085666,-151.0,0.00036118,31]
[395342089,1764635085739,-151.0,0.00036118,31]
[395342090,1764635085813,-151.0,0.00036118,31]
[395342091,1764635085884,-151.0,0.00036118,31]
[395342092,1764635085958,-174.86869228,0.00036118,60]
[395342093,1764635086027,-574.12,0.00036118,30]
[395342094,1764635086095,-574.12,0.00036118,30]
[395342095,1764635086169,-574.12,0.00036118,30]
[395342096,1764635086407,-574.12,0.00036118,30]
[395342097,1764635086482,-574.12,0.00036118,30]
[395342098,1764635086558,-574.12,0.00036118,30]
[395342099,1764635086634,-574.12,0.00036118,30]
[395342100,1764635086707,-574.12,0.00036118,30]
[395342101,1764635086781,-574.12,0.00036118,30]
[395342102,1764635086854,-574.12,0.00036118,30]
[395342103,1764635086925,-574.12,0.00036118,30]
[395342104,1764635086994,-574.12,0.00036118,30]
[395342105,1764635087061,-574.12,0.00036118,30]
[395342106,1764635087131,-574.12,0.00036118,30]
[395342107,1764635087204,-574.12,0.00036118,30]
[395342108,1764635087271,-574.12,0.00036118,30]
[395342109,1764635087341,-574.12,0.00036118,30]
[395342110,1764635087413,-574.12,0.00036118,30]
[395342111,1764635087492,-574.12,0.00036118,30]
[395342112,1764635087574,-574.12,0.00036118,30]
[395342113,1764635087647,-574.12,0.00036118,30]
[395342114,1764635087716,-574.12,0.00036118,30]
[395342115,1764635087785,-574.12,0.00036118,30]
[395342116,1764635087860,-505.96752141,0.00036118,60]
[395342117,1764635087937,-574.12518836,0.00036118,30]
[395342118,1764635089083,1218.8884,0.00036122,20]
[395342119,1764635089991,315.01677062,9.111e-05,2]
[395342120,1764635090971,315.01677062,9.02e-05,2]
[395342121,1764635092187,315.01677062,8.93e-05,2]
[395342122,1764635114083,511.23,0.000201,120]
[395342124,1764635175729,1000.0,0.00011,3]
[395342125,1764635195124,-169.8713006,9.447e-05,2]
[395342127,1764635226085,-674.7322672,9.353e-05,2]
[395342128,1764635226105,-674.7322672,9.447e-05,2]
[395342129,1764635226127,-11.26600282,9.605e-05,2]
[395342130,1764635226161,-152.23331303,9.605e-05,2]
[395342131,1764635226182,-235.88008292,0.00010651,2]
[395342133,1764635238110,-1140.93658558,0.00010544,2]
[395342134,1764635281057,1000.0,0.0002,30]
[395342135,1764635348093,-386.48479901,0.00010544,2]
[395342195,1764635438420,-558.0997,0.00010439,2]
[395342201,1764635438477,-2547.59984602,0.00010439,2]
[395342204,1764635438490,-236.0,0.00010544,2]
[395342206,1764635438500,-164.15250926,0.000106,2]
[395342208,1764635438510,-300.0,0.00010655,2]
[395342210,1764635438520,-300.0,0.00010655,2]
[395342212,1764635438530,-1200.0,0.00010655,2]
[395342214,1764635438540,-328.77671644,0.00010656,2]
[395342215,1764635438553,-193.44189305,0.00010656,2]
[395342218,1764635438563,-500.0,0.00010656,2]
[395342219,1764635438574,-500.0,0.00010656,2]
[395342221,1764635438584,-500.0,0.00010656,2]
[395342224,1764635438594,-500.0,0.00010656,2]
[395342226,1764635438605,-500.0,0.00010656,2]
[395342227,1764635438615,-500.0,0.00010656,2]
[395342230,1764635438631,-500.0,0.00010656,2]
[395342232,1764635438641,-500.0,0.00010656,2]
[395342233,1764635438650,-284.2182852,0.00010656,2]
[395342236,1764635438662,-215.7817148,0.00010656,2]
[395342238,1764635438673,-500.0,0.00010656,2]
[395342240,1764635438683,-500.0,0.00010656,2]
[395342242,1764635438695,-500.0,0.00010656,2]
[395342244,1764635438706,-517.0187894,0.00010656,2]
[395342246,1764635438716,-500.0,0.00010656,2]
[395342247,1764635438726,-178.96368561,0.00010656,2]
[395342250,1764635438735,-500.0,0.00010656,2]
[395342252,1764635438744,-500.0,0.00010656,2]
[395342254,1764635438755,-500.0,0.00010656,2]
[395342256,1764635438764,-500.0,0.00010656,2]
[395342257,1764635438774,-500.0,0.00010656,2]
[395342260,1764635438783,-500.0,0.00010656,2]
[395342261,1764635438793,-500.0,0.00010656,2]
[395342263,1764635438803,-500.0,0.00010656,2]
[395342266,1764635438813,-500.0,0.00010656,2]
[395342267,1764635438823,-500.0,0.00010656,2]
[395342269,1764635438832,-500.0,0.00010656,2]
[395342272,1764635438843,-500.0,0.00010656,2]
[395342273,1764635438852,-500.0,0.00010656,2]
[395342275,1764635438862,-500.0,0.00010656,2]
[395342277,1764635438872,-500.0,0.00010656,2]
[395342279,1764635438882,-500.0,0.00010656,2]
[395342281,1764635438892,-500.0,0.00010656,2]
[395342283,1764635438902,-500.0,0.00010656,2]
[395342284,1764635438912,-500.0,0.00010656,2]
[395342285,1764635438923,-500.0,0.00010656,2]
[395342286,1764635438933,-500.0,0.00010656,2]
[395342287,1764635438943,-642.64945735,0.00010656,2]
[395342288,1764635438953,-500.0,0.00010656,2]
[395342289,1764635438963,-500.0,0.00010656,2]
[395342290,1764635438974,-500.0,0.00010656,2]
[395342291,1764635439262,-500.0,0.00010656,2]
[395342292,1764635439274,-500.0,0.00010656,2]
[395342293,1764635439285,-500.0,0.00010656,2]
[395342294,1764635439295,-500.0,0.00010656,2]
[395342295,1764635439306,-500.0,0.00010656,2]
[395342296,1764635439316,-500.0,0.00010656,2]
[395342297,1764635439326,-500.0,0.00010656,2]
[395342299,1764635439337,-500.0,0.00010656,2]
[395342300,1764635439347,-500.0,0.00010656,2]
[395342302,1764635439356,-500.0,0.00010656,2]
[395342304,1764635439367,-500.0,0.00010656,2]
[395342306,1764635439377,-500.0,0.00010656,2]
[395342307,1764635439387,-500.0,0.00010656,2]
[395342309,1764635439397,-500.0,0.00010656,2]
[395342311,1764635439407,-500.0,0.00010656,2]
[395342313,1764635439416,-500.0,0.00010656,2]
[395342315,1764635439426,-500.0,0.00010656,2]
[395342317,1764635439435,-424.83796574,0.00010656,2]
[395342320,1764635439447,-75.16203426,0.00010656,2]
[395342322,1764635439457,-500.0,0.00010656,2]
[395342324,1764635439466,-500.0,0.00010656,2]
[395342326,1764635439475,-500.0,0.00010656,2]
[395342328,1764635439485,-329.69310678,0.00010656,2]
[395342330,1764635439495,-500.0,0.00010656,2]
[395342331,1764635439504,-500.0,0.00010656,2]
[395342333,1764635439514,-500.0,0.00010656,2]
[395342336,1764635439523,-500.0,0.00010656,2]
[395342338,1764635439533,-500.0,0.00010656,2]
[395342340,1764635439547,-500.0,0.00010656,2]
[395342342,1764635439556,-500.0,0.00010656,2]
[395342344,1764635439565,-141.75378783,0.00010656,2]
[395342346,1764635439576,-358.24621217,0.00010656,2]
[395342348,1764635439586,-500.0,0.00010656,2]
[395342350,1764635439596,-401.57975983,0.00010656,2]
[395342352,1764635439608,-98.42024017,0.00010656,2]
[395342354,1764635439617,-500.0,0.00010656,2]
[395342356,1764635439627,-500.0,0.00010656,2]
[395342358,1764635439636,-235.19699183,0.00010656,2]
[395342360,1764635439648,-264.80300817,0.00010656,2]
[395342362,1764635439659,-22.88546008,0.00010656,2]
[395342678,1764635446482,-511.23,0.00010549,2]
[395342679,1764635642965,250.0,0.0002,30]
[395342680,1764635698130,305.75410079,9.111e-05,2]
[395343727,1764636442140,-1124.26159597,9.272e-05,2]
[395343728,1764636444086,-999.76238343,9.272e-05,2]
[395343729,1764636444107,-160.86945908,9.462e-05,2]
[395343730,1764636444126,-269.94311493,9.654e-05,2]
[395343731,1764636556094,-1668.09824342,9.557e-05,2]
[395343732,1764636597401,3.46565639,9.111e-05,2]
[395343733,1764636597427,200.50625623,9.111e-05,2]
[395343734,1764636602799,250.0,0.0002,30]
[395343738,1764636631609,-185.98262105,9.557e-05,2]
[395343739,1764636631618,-144.26980621,9.654e-05,2]
[395343740,1764636631676,-1709.81105826,9.654e-05,2]
[395343741,1764636631686,-381.15573506,0.00010259,2]
[395343742,1764636631695,-1543.78552592,0.00010458,2]
[395343743,1764636631704,-1543.78552591,0.00010476,2]
[395343744,1764636631713,-90.76226093,0.00010494,2]
[395343745,1764636631723,-1453.02326498,0.00010494,2]
[395343746,1764636631732,-747.07881174,0.00010498,2]
[395343747,1764636631743,-301.91648269,0.00010498,2]
[395343748,1764636631754,-151.00470557,0.00010498,2]
[395343750,1764636631763,-1200.0,0.00010499,2]
[395343751,1764636631772,-1000.0,0.000105,2]
[395343753,1764636631783,-300.0,0.0001051,2]
[395343755,1764636631793,-300.0,0.0001051,2]
[395343757,1764636631802,-7932.08971141,0.0001051,2]
[395343759,1764636631812,-500.0,0.0001051,2]
[395343760,1764636631821,-500.0,0.0001051,2]
[395343761,1764636631829,-500.0,0.0001051,2]
[395343762,1764636631838,-500.0,0.0001051,2]
[395343763,1764636631847,-500.0,0.0001051,2]
[395343764,1764636631856,-500.0,0.0001051,2]
[395343765,1764636631867,-500.0,0.0001051,2]
[395343766,1764636631877,-222.84385931,0.0001051,2]
[395343767,1764636631885,-500.0,0.0001051,2]
[395343768,1764636631894,-500.0,0.0001051,2]
[395343769,1764636631903,-500.0,0.0001051,2]
[395343770,1764636631912,-500.0,0.0001051,2]
[395343771,1764636631926,-500.0,0.0001051,2]
[395343772,1764636631935,-500.0,0.0001051,2]
[395343773,1764636631944,-500.0,0.0001051,2]
[395343774,1764636631953,-500.0,0.0001051,2]
[395343775,1764636631963,-500.0,0.0001051,2]
[395343776,1764636631972,-500.0,0.0001051,2]
[395343777,1764636631981,-500.0,0.0001051,2]
[395343778,1764636631990,-500.0,0.0001051,2]
[395343779,1764636631999,-1543.78552591,0.00010511,2]
[395343780,1764636632008,-500.0,0.00010528,2]
[395343781,1764636632017,-230.1437015,0.00010528,2]
[395343782,1764636632026,-1543.78552591,0.00010529,2]
[395343783,1764636632034,-4554.37431923,0.00010529,2]
[395343784,1764636632043,-169562.79031544,0.00010557,2]
[395343785,1764636632052,-70830.07428695,0.00010559,2]
[395343786,1764636632104,-500.0,0.0001051,2]
[395343787,1764636632113,-500.0,0.0001051,2]
[395343788,1764636632122,-500.0,0.0001051,2]
[395343789,1764636632131,-2699.73915369,0.00010559,2]
[395343801,1764636637721,-500.0,0.0001051,2]
[395343802,1764636637731,-500.0,0.0001051,2]
[395343803,1764636637741,-500.0,0.0001051,2]
[395343804,1764636637750,-82.3070308,0.0001051,2]
[395343805,1764636637761,-417.6929692,0.0001051,2]
[395343806,1764636637771,-500.0,0.0001051,2]
[395343807,1764636637780,-500.0,0.0001051,2]
[395343808,1764636637790,-500.0,0.0001051,2]
[395343809,1764636637799,-500.0,0.0001051,2]
[395343810,1764636637808,-500.0,0.0001051,2]
[395343811,1764636637818,-500.0,0.0001051,2]
[395343812,1764636637828,-364.26494573,0.0001051,2]
[395343813,1764636637837,-500.0,0.0001051,2]
[395343814,1764636637846,-500.0,0.0001051,2]
[395343815,1764636637855,-500.0,0.0001051,2]
[395343816,1764636637864,-500.0,0.0001051,2]
[395343817,1764636637873,-500.0,0.0001051,2]
[395343818,1764636637882,-500.0,0.0001051,2]
[395343819,1764636637891,-500.0,0.0001051,2]
[395343820,1764636637900,-421.74685483,0.0001051,2]
[395343821,1764636637909,-500.0,0.0001051,2]
[395343822,1764636637919,-500.0,0.0001051,2]
[395343823,1764636637932,-500.0,0.0001051,2]
[395343824,1764636637941,-500.0,0.0001051,2]
[395343825,1764636637950,-7606.22318041,0.00010559,2]
[395343826,1764636637965,-12635.14107802,0.00010559,2]
[395343827,1764636637976,-59001.09374429,0.00010559,2]
[395343828,1764636637987,-11382.020024,0.00010559,2]
[395343833,1764636639775,-22840.70730775,0.00010559,2]
[395343834,1764636639786,-1954.29745161,0.00010559,2]
[395343835,1764636639797,-12052.22737744,0.00010559,2]
[395343836,1764636639807,-324.11422259,0.00010559,2]
[395343837,1764636639819,-10507.0,0.00010559,2]
[395343838,1764636639830,-330.154,0.00010559,2]
[395343839,1764636639841,-1470.922002,0.00010559,2]
[395343840,1764636639852,-622.40080329,0.00010559,2]
[395343842,1764636639863,-126674.96776778,0.00010559,2]
[395343894,1764636642721,-65982.30192581,0.00010559,2]
[395343906,1764636642827,-29526.48054273,0.00010559,2]
[395343908,1764636642838,-4151.97647766,0.00010559,2]
[395343911,1764636642853,-47329.32359515,0.00010559,2]
[395344037,1764636645823,-494.293216,0.00010453,2]
[395344038,1764636645875,-8818.70482773,0.00010453,2]
[395344039,1764636645886,-73030.73883949,0.00010559,2]
[395344040,1764636645898,-1188.63002315,0.00010559,2]
[395344041,1764636645910,-830.6395,0.00010559,2]
[395344175,1764637559132,-153.57908196,0.0001004,2]
[395344177,1764637562480,250.0,0.0002,30]
[395344208,1764637630105,-157.6520699,0.00010196,2]
[395344209,1764637630127,-4.87969919,0.0001025,2]
[395344227,1764637637198,-172.26730081,0.0001025,2]
[395344228,1764637637223,-1.4287341,0.00010452,2]
[395344241,1764637653098,-273.65448325,0.00010347,2]
[395344279,1764637798149,204.07384761,9.111e-05,2]
[395344290,1764637831844,-24.91678265,0.00010347,2]
[395344292,1764637831856,-235.0,0.00010347,2]
[395344294,1764637831866,-156.77844959,0.000104,2]
[395344295,1764637831877,-58.16310896,0.00010452,2]
[395344296,1764637831890,-241.83689104,0.00010452,2]
[395344297,1764637831900,-13.66060082,0.00010452,2]
[395344299,1764637831911,-438.33939918,0.00010452,2]
[395344301,1764637831921,-300.0,0.00010452,2]
[395344303,1764637831932,-151.0,0.00010453,2]
[395344305,1764637831942,-39.92310896,0.00010453,2]
[395344308,1764637831954,-111.07689104,0.00010453,2]
[395344310,1764637831964,-151.0,0.00010453,2]
[395344311,1764637831973,-500.0,0.00010458,2]
[395344312,1764637831983,-213.65284767,0.00010458,2]
[395344338,1764637837894,-279.10748082,0.00010348,2]
[395344340,1764637837906,-302.0,0.00010348,2]
[395344345,1764637837953,-22.89251918,0.00010348,2]
[395344347,1764637837962,-151.0,0.00010453,2]
[395344349,1764637837971,-146.91517461,0.00010453,2]
[395344351,1764637837982,-4.08482539,0.00010453,2]
[395344353,1764637837991,-151.0,0.00010453,2]
[395344355,1764637838001,-151.0,0.00010453,2]
[395344357,1764637838010,-263.28348411,0.00010453,2]
[395344359,1764637838019,-286.34715233,0.00010458,2]
[395344361,1764637838029,-500.0,0.00010458,2]
[395344363,1764637838039,-596.02943842,0.00010458,2]
[395344366,1764637838049,-96.23613239,0.00010458,2]
[395344368,1764637838060,-315.02153696,0.00010458,2]
[395344370,1764637838070,-500.0,0.00010458,2]
[395344372,1764637838079,-500.0,0.00010458,2]
[395344374,1764637838088,-198.73914166,0.00010459,2]
[395344376,1764637838100,-6689.20264959,0.00010459,2]
[395344379,1764637838119,-5582.1560482,0.00010459,2]
[395344381,1764637838130,-17986.45151146,0.00010459,2]
[395344383,1764637838143,-13840.7156276,0.00010459,2]
[395344527,1764637839933,-16360.97718379,0.00010459,2]
[395344528,1764637839988,-398.076,0.00010459,2]
[395344533,1764637843190,-46286.70176038,0.00010459,2]
[395344554,1764637846055,-1521.34113669,0.00010459,2]
[395344580,1764637981733,67373.56306516,0.0002,30]
[395344622,1764638376174,10240.19,0.000201,120]
[395344625,1764638458164,1000.0,0.00011,3]
[395344630,1764638522380,250.0,0.0002,30]
[395344639,1764638565522,631.95,0.0002,120]
[395344642,1764638610178,544.26016461,0.00011,3]
[395344650,1764638775133,1000.0,0.0002,30]
[395344651,1764638816125,-156.81944415,9.896e-05,2]
[395344652,1764638816146,-13.05185645,9.996e-05,2]
[395344653,1764638830077,-156.81944415,0.00010097,2]
[395344654,1764638830098,-233.0,0.00010147,2]
[395344655,1764638830119,-177.14862252,0.00010152,2]
[395344656,1764638830139,-129.74337637,0.000103,2]
[395344657,1764638836080,-527.03880379,0.00010197,2]
[395344658,1764638836101,-613.89778179,0.000103,2]
[395344659,1764638839087,-256.35884184,0.000103,2]
[395344660,1764638839108,-300.0,0.00010352,2]
[395344661,1764638839130,-780.72480126,0.00010353,2]
[395344706,1764639038293,-270.18184425,0.000101,2]
[395344707,1764639038303,-156.95304159,0.00010174,2]
[395344708,1764639038312,-2583.3124169,0.00010249,2]
[395344710,1764639038321,-300.0,0.00010352,2]
[395344713,1764639038331,-300.0,0.00010352,2]
[395344716,1764639038340,-1200.0,0.00010352,2]
[395344718,1764639038350,-2583.3124169,0.00010353,2]
[395344719,1764639038361,-153.34247359,0.00010353,2]
[395344720,1764639038371,-151.0,0.00010353,2]
[395344721,1764639038381,-151.0,0.00010353,2]
[395344722,1764639038390,-151.0,0.00010353,2]
[395344724,1764639038399,-151.0,0.00010353,2]
[395344726,1764639038408,-151.0,0.00010353,2]
[395344727,1764639038418,-151.0,0.00010353,2]
[395344728,1764639038428,-151.0,0.00010353,2]
[395344729,1764639038438,-151.0,0.00010353,2]
[395344730,1764639038448,-151.0,0.00010353,2]
[395344731,1764639038457,-151.0,0.00010353,2]
[395344732,1764639038467,-151.0,0.00010353,2]
[395344733,1764639038476,-151.0,0.00010353,2]
[395344734,1764639038485,-151.0,0.00010353,2]
[395344735,1764639038495,-151.0,0.00010353,2]
[395344736,1764639038504,-1005.61006931,0.00010353,2]
[395344737,1764639038513,-151.0,0.00010353,2]
[395344738,1764639038523,-151.0,0.00010353,2]
[395344739,1764639038532,-151.0,0.00010353,2]
[395344740,1764639038542,-151.0,0.00010353,2]
[395344741,1764639038554,-151.0,0.00010353,2]
[395344742,1764639038564,-151.0,0.00010353,2]
[395344743,1764639038573,-223.0315306,0.00010353,2]
[395344744,1764639038583,-161.10059105,0.00010358,2]
[395344745,1764639038593,-267.91751882,0.00010358,2]
[395344746,1764639038603,-157.02619228,0.00010358,2]
[395344747,1764639038613,-5119.4278384,0.00010359,2]
[395344748,1764639038626,-5508.53,0.00010359,2]
[395344749,1764639038637,-2606.28752064,0.00010359,2]
[395344750,1764639038650,-326.93934112,0.00010359,2]
[395344751,1764639038661,-1269.67435598,0.00010359,2]
[395344868,1764639043481,-31674.85181998,0.00010359,2]
[395344940,1764639482799,250.0,0.0002,30]
[395344979,1764639707175,-305.51102561,9.557e-05,2]
[395344980,1764639707198,-305.51102561,9.654e-05,2]
[395344981,1764639707220,-250.29152,9.776e-05,2]
[395344982,1764639707241,-154.18566369,9.802e-05,2]
[395344983,1764639707262,-1331.23,9.99e-05,2]
[395344984,1764639707282,-1331.23,9.99e-05,2]
[395344985,1764639707303,-186.05084579,0.00010094,2]
[395344986,1764639707323,-740.95695822,0.0001016,2]
[395344987,1764639707345,-300.0,0.00010192,2]
[395344988,1764639707370,-259.60155282,0.00010193,2]
[395344989,1764639707392,-300.0,0.00010193,2]
[395344990,1764639707413,-300.0,0.00010193,2]
[395344991,1764639707434,-300.0,0.00010193,2]
[395344992,1764639707455,-170.55,0.00010193,2]
[395344993,1764639707476,-1200.0,0.00010194,2]
[395344994,1764639707497,-3114.95450551,0.00010246,2]
[395344995,1764639707518,-26339.88279557,0.00010246,2]
[395344996,1764639707539,-223.0315306,0.00010253,2]
[395344997,1764639707559,-1200.0,0.00010254,2]
[395344998,1764639707583,-61687.01257658,0.00010259,2]
[395344999,1764639716231,-100000.0,0.00010259,2]
[395345000,1764639821117,465.0,0.0002,30]
[395345001,1764639935114,-363.1942273,9.261e-05,2]
[395345010,1764640033079,-484.4250939,9.261e-05,2]
[395345011,1764640033099,-661.11870678,9.354e-05,2]
[395345019,1764640046076,-186.50061442,9.354e-05,2]